bitfinex/quotes_SOLUSD_20260305
["timestamp","ask_amount","ask_price","bid_price","bid_amount"]
[1772712630206,5.01065413,91.87,91.812,1.67768758]
[1772712630708,5.01065413,91.86,91.812,1.67768758]
[1772712631009,5.01065413,91.87,91.814,1.39336444]
[1772712631206,5.01065413,91.86,91.814,1.39336444]
[1772712632010,0.28432314,91.869,91.814,1.39336444]
[1772712632193,10.88518308,91.868,91.816,1.39336444]
[1772712633303,10.88518308,91.868,91.815,99.42013286]
[1772712633304,10.88518308,91.868,91.818,1.39336444]
[1772712633815,5.01065413,91.86,91.818,1.39336444]
[1772712634391,5.01065413,91.85,91.816,61.3]
[1772712634704,5.01065413,91.85,91.817,10.89122929]
[1772712635203,0.28432314,91.867,91.81,1.39336444]
[1772712635204,5.01065413,91.84,91.811,10.89194105]
[1772712637215,10.8886203,91.839,91.804,10.89277155]
[1772712638092,5.01065413,91.83,91.8,1.39336444]
[1772712638506,38.11017105,91.839,91.8,1.39336444]
[1772712639206,38.11017105,91.839,91.802,1.39336444]
[1772712639599,10.8886203,91.839,91.802,1.39336444]
[1772712639800,15.89560024,91.87,91.802,1.67768758]
[1772712640107,0.28432314,91.869,91.802,1.67768758]
[1772712640308,0.28432314,91.869,91.801,38.12594633]
[1772712640309,10.88494611,91.87,91.805,1.67768758]
[1772712641210,5.01065413,91.87,91.807,1.67768758]
[1772712641403,32.22033453,91.88,91.812,1.39336444]
[1772712641600,10.88316917,91.885,91.814,1.53552601]
[1772712641801,10.88316917,91.885,91.813,0.14216157]
[1772712641802,10.88316917,91.885,91.816,1.67768758]
[1772712642115,10.88316917,91.885,91.817,1.67768758]
[1772712642516,10.88316917,91.885,91.819,1.67768758]
[1772712643022,38.09109211,91.885,91.819,1.67768758]
[1772712643194,10.88269542,91.889,91.82,92.5724243]
[1772712643398,10.88269542,91.889,91.827,1.39336444]
[1772712643594,10.88269542,91.889,91.829,1.53552601]
[1772712643902,10.88269542,91.889,91.833,1.39336444]
[1772712646220,10.88269542,91.889,91.835,1.39336444]
[1772712646714,38.08943398,91.889,91.835,1.39336444]
[1772712647817,0.28432314,91.888,91.835,1.39336444]
[1772712648215,0.28432314,91.888,91.816,1.08913479]
[1772712648216,38.09026303,91.887,91.837,1.39336444]
[1772712649202,38.09026303,91.887,91.839,1.39336444]
[1772712650325,5.01065413,91.88,91.839,1.39336444]
[1772712650704,10.88293229,91.887,91.839,1.39336444]
[1772712651304,10.88293229,91.887,91.824,62.3890399]
[1772712651305,27.20419818,91.898,91.841,1.39336444]
[1772712653405,5.01065413,91.89,91.843,1.39336444]
[1772712653605,0.28432314,91.889,91.843,1.39336444]
[1772712653806,5.01065413,91.88,91.843,1.39336444]
[1772712654825,10.88387988,91.879,91.844,10.88802752]
[1772712655022,10.88387988,91.879,91.845,1.39336444]
[1772712655228,10.88281386,91.888,91.845,1.39336444]
[1772712656922,5.01065413,91.89,91.847,1.39336444]
[1772712657918,10.88269542,91.889,91.848,10.88755334]
[1772712658215,38.08943398,91.889,91.849,1.39336444]
[1772712660216,38.08943398,91.889,91.845,27.2197635]
[1772712660217,38.08943398,91.889,91.851,1.39336444]
[1772712661324,10.88213958,91.894,91.851,1.39336444]
[1772712661628,5.01065413,91.88,91.846,10.88777965]
[1772712662016,0.28432314,91.879,91.842,10.88817917]
[1772712662216,5.01065413,91.87,91.838,12.2821033]
[1772712662619,38.0939942,91.878,91.821,1.39336444]
[1772712662620,5.01065413,91.86,91.821,1.39336444]
[1772712662821,5.01065413,91.85,91.821,12.28411927]
[1772712663018,5.01065413,91.86,91.821,12.28411927]
[1772712663236,5.01065413,91.86,91.822,1.39336444]
[1772712663827,5.01065413,91.84,91.775,1.39336444]
[1772712664032,5.01065413,91.83,91.775,1.39336444]
[1772712664237,10.88980605,91.829,91.776,38.13633192]
[1772712664442,5.01065413,91.82,91.777,1.39336444]
[1772712664937,5.01065413,91.81,91.777,1.39336444]
[1772712665239,0.28432314,91.819,91.771,1.39336444]
[1772712665430,0.28432314,91.819,91.732,43.60487617]
[1772712665431,0.28083333,91.789,91.721,10.90262862]
[1772712665622,0.28083333,91.789,91.724,3.69383402]
[1772712665942,0.18083333,91.779,91.724,3.69383402]
[1772712666231,0.18083308,91.777,91.722,0.28432314]
[1772712666435,5.01065413,91.77,91.722,0.28432314]
[1772712666615,0.18083308,91.769,91.692,43.62426036]
[1772712666812,10.75177071,91.78,91.693,1.37491893]
[1772712667017,0.18083308,91.788,91.695,3.69383402]
[1772712667235,11.07559873,91.788,91.696,0.28432314]
[1772712667428,0.18083282,91.787,91.721,1.38558774]
[1772712668027,0.18083282,91.796,91.721,1.38558774]
[1772712668223,10.89336485,91.799,91.725,3.69383402]
[1772712668438,10.89336485,91.799,91.726,1.66991088]
[1772712669218,11.07350777,91.805,91.728,1.38558774]
[1772712669521,11.07350777,91.805,91.732,1.38558774]
[1772712669729,11.07350777,91.805,91.732,1.52774931]
[1772712669923,0.18083257,91.805,91.733,0.28432314]
[1772712670121,27.22716223,91.821,91.736,1.38558774]
[1772712670122,10.89131863,91.817,91.736,1.38558774]
[1772712670323,0.18083207,91.816,91.743,1.38558774]
[1772712673449,0.18086019,91.814,91.745,1.66991088]
[1772712674832,0.18086019,91.814,91.749,1.38558774]
[1772712675547,10.89100283,91.819,91.754,1.66991088]
[1772712676934,10.89039902,91.824,91.759,1.66991088]
[1772712677549,0.18089619,91.833,91.759,1.66991088]
[1772712677745,12.01638827,91.884,91.755,168.9281238]
[1772712677746,10.88871748,91.839,91.764,1.66991088]
[1772712678047,10.88871748,91.839,91.765,1.66991088]
[1772712678230,10.88871748,91.839,91.764,1.08975197]
[1772712678231,0.18090493,91.848,91.767,1.66991088]
[1772712678432,0.18090493,91.858,91.774,1.38558774]
[1772712678632,0.18090493,91.858,91.781,1.38558774]
[1772712678845,0.18090493,91.858,91.788,1.32448479]
[1772712679049,10.8864866,91.857,91.792,1.60880793]
[1772712679251,0.18092212,91.856,91.792,1.60880793]
[1772712680346,0.18092212,91.856,91.791,3.69383402]
[1772712680347,10.88672364,91.855,91.794,1.60880793]
[1772712680943,11.06765421,91.855,91.794,1.60880793]
[1772712682246,11.06765421,91.855,91.796,1.60880793]
[1772712682446,10.88565705,91.864,91.8,1.32448479]
[1772712682852,0.18094717,91.863,91.8,1.32448479]
[1772712683753,0.18095533,91.85,91.8,1.32448479]
[1772712684155,0.18095533,91.863,91.8,1.32448479]
[1772712684356,0.18096339,91.861,91.805,1.32448479]
[1772712684951,0.18096339,91.861,91.807,1.32448479]
[1772712685154,0.18097136,91.859,91.809,1.32448479]
[1772712686460,0.18097924,91.857,91.811,1.32448479]
[1772712689261,0.18100987,91.855,91.813,1.39053945]
[1772712691142,0.18100987,91.855,91.812,38.12137845]
[1772712691143,0.18102466,91.849,91.812,10.89182241]
[1772712691348,10.88755334,91.848,91.812,10.89182241]
[1772712691561,0.18102466,91.847,91.812,10.89182241]
[1772712691959,0.18102466,91.847,91.81,10.89205968]
[1772712692757,10.88708825,91.852,91.811,1.39053945]
[1772712693577,10.88708825,91.852,91.812,38.12137845]
[1772712693769,10.88708825,91.852,91.813,1.39053945]
[1772712694180,0.28432314,91.877,91.812,38.12137845]
[1772712694181,0.18104621,91.888,91.816,1.39053945]
[1772712694382,0.18104621,91.879,91.82,1.53270102]
[1772712694583,0.18104621,91.879,91.822,1.67486259]
[1772712694753,0.18104621,91.859,91.822,1.39053945]
[1772712694958,0.18104621,91.859,91.813,1.39053945]
[1772712695762,0.18105323,91.857,91.815,1.39053945]
[1772712698360,0.18105323,91.857,91.817,1.39053945]
[1772712698677,0.18107381,91.849,91.817,1.39053945]
[1772712699982,0.18107381,91.849,91.819,1.39053945]
[1772712701487,0.18107381,91.849,91.82,10.89087344]
[1772712701681,0.18107381,91.849,91.82,12.28141289]
[1772712702069,0.18109369,91.859,91.821,1.39053945]
[1772712702269,10.88556136,91.865,91.821,1.39053945]
[1772712702474,0.18110017,91.864,91.821,1.39053945]
[1772712703893,0.18110017,91.864,91.823,1.39053945]
[1772712704185,0.1811129,91.862,91.823,1.39053945]
[1772712704386,27.20929759,91.881,91.823,1.39053945]
[1772712704387,0.1811129,91.885,91.823,1.67486259]
[1772712705185,0.1811129,91.885,91.825,1.39053945]
[1772712705773,5.00756457,91.9,91.831,0.14216157]
[1772712705774,0.18111915,91.899,91.831,0.14216157]
[1772712706076,0.18111915,91.899,91.834,1.53270102]
[1772712706274,0.18112533,91.897,91.834,1.53270102]
[1772712707191,1e-08,91.9,91.834,1.53270102]
[1772712707395,1e-08,91.9,91.833,136.1166465]
[1772712707396,1e-08,91.9,91.839,1.53270102]
[1772712707684,1e-08,91.9,91.843,1.39053945]
[1772712707884,1e-08,91.9,91.85,1.39053945]
[1772712708188,1e-08,91.9,91.855,1.39053945]
[1772712709278,0.18114936,91.879,91.851,38.1051921]
[1772712709482,5.00756456,91.88,91.852,1.30085742]
[1772712709793,0.18114936,91.888,91.852,1.30085742]
[1772712710094,0.18114936,91.888,91.854,1.30085742]
[1772712710298,10.88211324,91.894,91.854,1.30085742]
[1772712711283,5.00756457,91.9,91.854,1.30085742]
[1772712711284,10.88139911,91.9,91.854,1.58518056]
[1772712711679,1e-08,91.9,91.854,1.58518056]
[1772712711979,1e-08,91.9,91.856,1.30085742]
[1772712712990,0.18116667,91.899,91.856,1.30085742]
[1772712714101,0.18116667,91.899,91.857,38.10270311]
[1772712714395,1e-08,91.9,91.858,1.30085742]
[1772712715094,1e-08,91.9,91.86,1.30085742]
[1772712715299,0.18118339,91.899,91.86,1.30085742]
[1772712715996,0.18118339,91.898,91.86,1.30085742]
[1772712716202,0.18118883,91.896,91.862,1.30085742]
[1772712717589,0.18119421,91.889,91.861,10.88601256]
[1772712718221,10.88281386,91.888,91.855,10.88672364]
[1772712718399,11.06401339,91.888,91.855,12.18758106]
[1772712718800,0.18119953,91.887,91.856,1.30085742]
[1772712718997,1e-08,91.9,91.856,1.30085742]
[1772712719195,1e-08,91.9,91.857,1.30085742]
[1772712720491,1e-08,91.9,91.859,1.30085742]
[1772712720688,1e-08,91.9,91.859,1.58518056]
[1772712721100,1e-08,91.9,91.859,1.30085742]
[1772712721410,0.18121513,91.899,91.858,10.88636808]
[1772712721614,0.18121513,91.889,91.853,10.88684731]
[1772712722305,10.88281386,91.888,91.853,10.88684731]
[1772712722508,5.18878477,91.88,91.853,10.88684731]
[1772712722711,0.18122021,91.88,91.853,10.88684731]
[1772712724494,0.1812302,91.878,91.853,10.88684731]
[1772712724909,10.88387988,91.879,91.825,1.30085742]
[1772712724910,5.00756456,91.86,91.825,1.30085742]
[1772712725306,0.1812302,91.861,91.825,1.30085742]
[1772712725494,0.18123511,91.869,91.825,1.30085742]
[1772712726093,0.18123511,91.859,91.825,1.30085742]
[1772712726510,0.18123996,91.857,91.826,10.89016182]
[1772712727918,0.18123996,91.857,91.827,1.30085742]
[1772712730323,0.18123996,91.857,91.828,12.19078206]
[1772712730535,0.18123996,91.857,91.829,1.30085742]
[1772712731505,10.88660512,91.856,91.829,1.30085742]
[1772712733510,5.00784709,91.86,91.831,1.30085742]
[1772712733810,5.18911948,91.86,91.831,1.30085742]
[1772712734018,0.18127239,91.859,91.831,1.30085742]
[1772712734597,10.8841168,91.877,91.831,1.30085742]
[1772712735512,10.8841168,91.877,91.833,1.30085742]
[1772712736032,0.28432314,91.89,91.833,1.30085742]
[1772712736206,0.28432314,91.89,91.832,38.11307605]
[1772712736207,1e-08,91.9,91.836,1.30085742]
[1772712736519,1e-08,91.9,91.838,1.58518056]
[1772712736723,1e-08,91.9,91.84,1.58518056]
[1772712736904,1e-08,91.9,91.842,1.58518056]
[1772712736905,11.06279672,91.899,91.842,1.58518056]
[1772712737109,5.0078471,91.9,91.842,1.58518056]
[1772712737110,0.1812855,91.898,91.842,1.58518056]
[1772712737309,1e-08,91.9,91.842,1.58518056]
[1772712737507,0.2,91.91,91.847,0.28432314]
[1772712737820,0.2,91.91,91.848,1.44301899]
[1772712738026,0.18128977,91.899,91.848,1.30085742]
[1772712738421,0.181294,91.908,91.848,1.30085742]
[1772712738626,0.181294,91.909,91.848,1.30085742]
[1772712739543,0.1813023,91.908,91.85,1.58518056]
[1772712739711,0.1813023,91.908,91.85,1.30085742]
[1772712740618,11.06174796,91.908,91.85,1.30085742]
[1772712740812,0.18130638,91.907,91.85,1.30085742]
[1772712741012,0.18130638,91.907,91.85,1.58518056]
[1772712741733,0.18130638,91.907,91.852,1.58518056]
[1772712742038,0.18130638,91.907,91.854,1.58518056]
[1772712743925,0.18130638,91.907,91.856,1.30085742]
[1772712744120,0.18130638,91.907,91.858,1.30085742]
[1772712744347,11.06200466,91.906,91.858,1.30085742]
[1772712744878,5.20784709,91.91,91.858,1.30085742]
[1772712744879,0.18132223,91.899,91.858,1.30085742]
[1772712745937,0.18132608,91.909,91.86,1.30085742]
[1772712746663,5.20784709,91.91,91.86,1.30085742]
[1772712746953,0.2,91.91,91.86,1.30085742]
[1772712747272,0.2,91.91,91.862,1.30085742]
[1772712747554,0.2,91.91,91.862,1.58518056]
[1772712748056,0.2,91.91,91.864,1.58518056]
[1772712748295,0.18134104,91.919,91.867,1.35579477]
[1772712748440,0.18134104,91.918,91.867,1.35579477]
[1772712749138,0.18134468,91.909,91.867,1.35579477]
[1772712750141,0.18134468,91.909,91.863,38.10021444]
[1772712750142,0.18134468,91.909,91.869,1.35579477]
[1772712750342,0.18134827,91.889,91.868,10.88518308]
[1772712750537,0.18134827,91.889,91.848,14.84779789]
[1772712750538,0.18134827,91.879,91.848,25.73526835]
[1772712750753,5.00784709,91.87,91.848,25.73526835]
[1772712750954,5.00784709,91.87,91.842,10.88821208]
[1772712751154,0.18134827,91.869,91.842,10.88821208]
[1772712751751,0.18135182,91.859,91.833,10.88933172]
[1772712751940,0.18135182,91.859,91.798,14.84779789]
[1772712751941,5.00784709,91.84,91.823,10.89051762]
[1772712752542,15.89525723,91.85,91.823,10.89051762]
[1772712753046,10.88534478,91.867,91.824,1.35579477]
[1772712753254,5.00784709,91.86,91.824,1.35579477]
[1772712753835,0.1813588,91.839,91.799,1.35579477]
[1772712754047,5.18920589,91.85,91.799,1.35579477]
[1772712754260,10.88743481,91.849,91.8,1.35579477]
[1772712754558,5.00784709,91.86,91.8,1.64011791]
[1772712754767,5.00784709,91.85,91.8,1.35579477]
[1772712754945,0.18136223,91.857,91.8,1.64011791]
[1772712755262,0.18136562,91.849,91.8,1.35579477]
[1772712755941,0.18136562,91.839,91.8,1.35579477]
[1772712756359,0.18136562,91.839,91.801,38.12594633]
[1772712756556,0.18136562,91.839,91.802,1.35579477]
[1772712757667,0.18136562,91.839,91.798,14.84779789]
[1772712757668,0.18137229,91.819,91.798,14.84779789]
[1772712757840,5.00784709,91.81,91.798,14.66642239]
[1772712758545,10.7444377,91.81,91.798,14.66642239]
[1772712758768,21.63657708,91.81,91.798,14.66642239]
[1772712758972,10.7444377,91.81,91.798,14.66642239]
[1772712759269,5.10909883,91.838,91.798,14.66642239]
[1772712759442,10.7444377,91.81,91.798,14.66642239]
[1772712759873,10.7444377,91.81,91.781,10.89541567]
[1772712760077,10.7444377,91.81,91.782,1.39154517]
[1772712760441,10.7444377,91.81,91.783,10.89526382]
[1772712760672,10.7444377,91.82,91.784,1.39154517]
[1772712760847,10.88814607,91.843,91.784,1.39154517]
[1772712760848,10.7444377,91.83,91.784,1.39154517]
[1772712761054,10.88814607,91.843,91.784,1.39154517]
[1772712761055,10.7444377,91.84,91.784,1.67586831]
[1772712762656,10.7444377,91.85,91.786,1.67586831]
[1772712763052,10.7444377,91.84,91.786,1.67586831]
[1772712764751,10.7444377,91.84,91.788,1.67586831]
[1772712764947,10.7444377,91.85,91.789,1.39154517]
[1772712765346,10.7444377,91.84,91.789,1.39154517]
[1772712766161,10.7444377,91.83,91.789,1.39154517]
[1772712768474,10.7444377,91.83,91.791,1.39154517]
[1772712768671,10.7444377,91.81,91.77,1.39154517]
[1772712768970,10.7444377,91.8,91.77,1.39154517]
[1772712770578,10.7444377,91.8,91.771,38.13840973]
[1772712770881,10.7444377,91.8,91.772,1.39154517]
[1772712772671,10.7444377,91.8,91.774,1.39154517]
[1772712774874,10.7444377,91.8,91.775,10.89621356]
[1772712775876,10.7444377,91.8,91.775,39.52829264]
[1772712776076,10.7444377,91.81,91.776,1.39154517]
[1772712777170,10.7444377,91.81,91.777,12.28752128]
[1772712777374,10.7444377,91.81,91.778,1.39154517]
[1772712778159,10.7444377,91.81,91.779,10.89573867]
[1772712778561,5.01379063,91.81,91.779,12.28728384]
[1772712779262,5.01379063,91.81,91.78,1.39154517]
[1772712779875,10.89182294,91.812,91.767,1.39154517]
[1772712779876,5.01379063,91.79,91.767,1.39154517]
[1772712780071,5.01379063,91.79,91.768,1.39154517]
[1772712780274,5.01379063,91.79,91.769,10.89692597]
[1772712780469,5.01379063,91.79,91.769,12.28847114]
[1772712780870,5.01379063,91.79,91.769,10.89692597]
[1772712781580,5.01379063,91.79,91.769,38.13924091]
[1772712781781,5.01379063,91.8,91.77,1.39154517]
[1772712782385,5.01379063,91.8,91.772,1.39154517]
[1772712783282,10.89336485,91.799,91.772,1.39154517]
[1772712783679,5.01379063,91.8,91.772,1.39154517]
[1772712784389,5.01379063,91.81,91.774,1.39154517]
[1772712785091,5.01379063,91.8,91.774,1.39154517]
[1772712785669,0.14216157,91.828,91.774,1.39154517]
[1772712785670,5.01379063,91.81,91.774,1.39154517]
[1772712786473,5.01379063,91.81,91.776,1.39154517]
[1772712788294,5.01379063,91.82,91.776,1.39154517]
[1772712788494,5.01379063,91.82,91.778,1.39154517]
[1772712788691,10.89009282,91.827,91.778,1.39154517]
[1772712788895,5.01379063,91.82,91.778,1.39154517]
[1772712790698,5.01259733,91.82,91.78,1.39154517]
[1772712792583,10.89099206,91.819,91.782,1.39154517]
[1772712792985,5.01259733,91.82,91.782,1.39154517]
[1772712794102,5.01259733,91.83,91.782,1.39154517]
[1772712794901,5.01259733,91.82,91.784,1.39154517]
[1772712795084,5.01259733,91.83,91.784,1.39154517]
[1772712795487,5.01259733,91.82,91.784,1.39154517]
[1772712796303,5.01259733,91.82,91.786,1.39154517]
[1772712796806,5.01259733,91.83,91.786,1.39154517]
[1772712798089,15.90228479,91.83,91.786,1.39154517]
[1772712798293,15.90228479,91.83,91.771,43.58663433]
[1772712798294,15.90228479,91.83,91.788,1.39154517]
[1772712798600,0.28432314,91.843,91.788,1.39154517]
[1772712798798,5.01259733,91.84,91.788,1.39154517]
[1772712800304,10.8886203,91.839,91.79,1.39154517]
[1772712801100,10.8886203,91.839,91.791,1.39154517]
[1772712801306,5.01259733,91.84,91.791,1.39154517]
[1772712801900,10.88843829,91.841,91.791,1.39154517]
[1772712802702,38.10602183,91.849,91.793,1.39154517]
[1772712802906,5.01259733,91.83,91.793,1.39154517]
[1772712803906,5.01259733,91.84,91.793,1.39154517]
[1772712804308,10.88743481,91.849,91.793,1.39154517]
[1772712804612,10.88743481,91.849,91.793,1.67586831]
[1772712804804,10.88743481,91.849,91.795,1.39154517]
[1772712805407,5.01259733,91.84,91.795,1.39154517]
[1772712805804,10.88743481,91.849,91.795,1.39154517]
[1772712806195,5.01259733,91.84,91.795,1.39154517]
[1772712806910,5.01259733,91.84,91.797,1.39154517]
[1772712807098,10.88743481,91.849,91.797,1.39154517]
[1772712808333,5.01259733,91.86,91.797,1.67586831]
[1772712808720,5.01259733,91.86,91.8,1.67586831]
[1772712808922,15.89882403,91.86,91.805,1.39154517]
[1772712812319,5.01259733,91.87,91.807,1.39154517]
[1772712813299,5.01259733,91.86,91.807,1.39154517]
[1772712814121,5.01259733,91.86,91.796,43.57488343]
[1772712814122,10.88743481,91.849,91.811,1.39154517]
[1772712815016,27.21579397,91.859,91.811,1.39154517]
[1772712815320,5.10909883,91.877,91.811,1.39154517]
[1772712815321,5.01259733,91.85,91.811,1.39154517]
[1772712816104,15.89999541,91.85,91.812,38.12137845]
[1772712816306,5.01259733,91.85,91.813,1.39154517]
[1772712816524,15.90001527,91.85,91.813,1.39154517]
[1772712816718,5.01259733,91.86,91.813,1.39154517]
[1772712816927,10.88633039,91.859,91.813,1.39154517]
[1772712818426,10.88633039,91.859,91.815,1.39154517]
[1772712818632,5.01259733,91.85,91.815,1.39154517]
[1772712820205,15.89991817,91.85,91.817,1.39154517]
[1772712820434,27.21288449,91.869,91.817,1.39154517]
[1772712820618,5.01259733,91.85,91.817,1.39154517]
[1772712821134,5.10909883,91.867,91.803,1.39154517]
[1772712821309,5.10909883,91.867,91.796,12.28526602]
[1772712821310,5.01259733,91.83,91.796,12.28526602]
[1772712821639,5.01259733,91.83,91.797,1.39154517]
[1772712821808,5.01259733,91.84,91.797,1.39154517]
[1772712822425,5.01259733,91.83,91.798,10.89348351]
[1772712822624,38.10643671,91.848,91.798,10.89348351]
[1772712822625,5.01259733,91.82,91.798,10.89348351]
[1772712822922,5.01259733,91.82,91.764,3.69383402]
[1772712822923,5.01259733,91.81,91.783,12.28680899]
[1772712823224,5.01259733,91.81,91.783,10.89526382]
[1772712823421,5.01259733,91.8,91.779,10.89573472]
[1772712823603,0.28432314,91.829,91.779,10.89573472]
[1772712823604,5.01259733,91.81,91.779,10.89573472]
[1772712824224,5.01259733,91.81,91.78,1.39154517]
[1772712824622,10.89217832,91.809,91.781,10.89550124]
[1772712825625,5.01259733,91.81,91.782,1.39154517]
[1772712826109,10.89217832,91.809,91.782,1.39154517]
[1772712826506,10.89217832,91.809,91.744,3.97815716]
[1772712826507,5.01259733,91.79,91.744,3.69383402]
[1772712826700,10.89817226,91.759,91.74,0.1]
[1772712827025,5.01259733,91.75,91.74,0.1]
[1772712827210,5.01259733,91.75,91.719,10.90275807]
[1772712827410,5.01259733,91.75,91.714,1.39154517]
[1772712827411,5.01259733,91.74,91.7,0.1]
[1772712827610,5.01259733,91.73,91.7,0.1]
[1772712827827,5.01259733,91.72,91.7,0.1]
[1772712828310,5.01259733,91.72,91.703,10.90470687]
[1772712828628,5.01259733,91.72,91.7,0.1]
[1772712828815,10.90286636,91.719,91.7,0.1]
[1772712829330,5.01259733,91.74,91.701,1.39154517]
[1772712830329,5.01259733,91.73,91.701,1.39154517]
[1772712831227,5.01259733,91.73,91.703,1.39154517]
[1772712831522,5.01259733,91.74,91.703,1.39154517]
[1772712832126,10.8994929,91.748,91.703,1.39154517]
[1772712832337,5.01259733,91.76,91.703,1.39154517]
[1772712832514,5.01259733,91.75,91.703,1.39154517]
[1772712832831,5.01259733,91.76,91.703,1.67586831]
[1772712833217,15.91059729,91.76,91.705,1.39154517]
[1772712834108,5.01259733,91.76,91.705,1.39154517]
[1772712835531,5.01259733,91.76,91.707,1.39154517]
[1772712835731,5.01259733,91.77,91.707,1.67586831]
[1772712836230,5.01259733,91.76,91.707,1.67586831]
[1772712836807,5.01259733,91.76,91.707,1.39154517]
[1772712837017,5.01259733,91.75,91.707,1.39154517]
[1772712837211,5.01259733,91.76,91.707,1.39154517]
[1772712837715,5.01259733,91.77,91.709,1.39154517]
[1772712837933,5.01259733,91.77,91.711,1.67586831]
[1772712839525,5.01259733,91.77,91.713,1.67586831]
[1772712840913,5.01259733,91.79,91.716,1.67586831]
[1772712841143,10.89348351,91.798,91.72,1.67586831]
[1772712841811,10.89264332,91.806,91.725,1.39154517]
[1772712842017,5.01259733,91.8,91.729,1.39154517]
[1772712842228,5.01259733,91.8,91.73,0.14216157]
[1772712842426,5.01259733,91.8,91.731,1.67586831]
[1772712843633,10.89336485,91.799,91.733,1.67586831]
[1772712844635,10.8925925,91.806,91.733,1.67586831]
[1772712845926,5.01259733,91.81,91.742,1.39154517]
[1772712846241,10.89217832,91.809,91.744,1.39154517]
[1772712846436,5.01259733,91.79,91.744,1.53370674]
[1772712846636,5.01259733,91.79,91.745,1.39154517]
[1772712847645,5.01259733,91.8,91.745,1.39154517]
[1772712848242,10.89336485,91.799,91.747,1.39154517]
[1772712848448,5.01259733,91.79,91.747,1.39154517]
[1772712849036,10.89336485,91.799,91.747,1.39154517]
[1772712850339,10.89336485,91.799,91.749,1.39154517]
[1772712851246,5.01259733,91.78,91.748,10.89942015]
[1772712852355,10.89573867,91.779,91.748,1.39154517]
[1772712852951,5.01654793,91.78,91.748,1.39154517]
[1772712854148,5.01654793,91.79,91.748,1.39154517]
[1772712854348,10.89455163,91.789,91.75,1.39154517]
[1772712854643,15.90989915,91.8,91.75,1.39154517]
[1772712856343,15.90989915,91.8,91.751,38.14672319]
[1772712856550,5.01654793,91.8,91.752,1.39154517]
[1772712858975,15.90986235,91.8,91.754,1.39154517]
[1772712859159,10.89258196,91.806,91.754,1.39154517]
[1772712859466,27.22799495,91.818,91.754,1.39154517]
[1772712859978,5.01654793,91.81,91.754,1.39154517]
[1772712860669,5.01654793,91.8,91.754,1.39154517]
[1772712860855,10.89336485,91.799,91.755,38.14506021]
[1772712861054,10.89336485,91.799,91.756,1.39154517]
[1772712862673,15.90988902,91.8,91.756,1.39154517]
[1772712863051,15.90988902,91.8,91.758,1.39154517]
[1772712863559,5.01654793,91.8,91.758,1.39154517]
[1772712864347,10.89336485,91.799,91.76,1.39154517]
[1772712865265,10.89336485,91.799,91.762,1.39154517]
[1772712867164,10.89336485,91.799,91.739,3.69383402]
[1772712867165,7.34322151,91.798,91.739,3.69383402]
[1772712867466,7.34322151,91.798,91.665,18.25418938]
[1772712867467,5.01654793,91.75,91.711,1.39154517]
[1772712868266,5.01654793,91.74,91.711,1.39154517]
[1772712868469,5.01654793,91.75,91.711,1.39154517]
[1772712869150,10.89930135,91.749,91.712,10.90369853]
[1772712869967,10.89930135,91.749,91.712,12.2952437]
[1772712870161,10.89930135,91.749,91.713,1.39154517]
[1772712870362,10.89930135,91.749,91.715,1.39154517]
[1772712871665,10.89930135,91.749,91.716,10.90322299]
[1772712872571,10.89930135,91.749,91.716,12.29476816]
[1772712872763,10.89930135,91.749,91.717,1.39154517]
[1772712874156,10.89930135,91.749,91.719,1.39154517]
[1772712876161,10.89930135,91.749,91.721,1.39154517]
[1772712876361,9.08264883,91.777,91.721,1.39154517]
[1772712876362,0.14216157,91.768,91.721,1.39154517]
[1772712876567,5.01654793,91.77,91.721,1.39154517]
[1772712876763,7.20226956,91.769,91.721,1.39154517]
[1772712876962,5.01654793,91.76,91.721,1.39154517]
[1772712877785,5.01654793,91.76,91.722,10.90250975]
[1772712877786,10.89811353,91.759,91.722,10.90250975]
[1772712877962,10.89811353,91.759,91.723,1.39154517]
[1772712880164,10.89811353,91.759,91.724,10.90227203]
[1772712880369,10.89811353,91.759,91.725,1.39154517]
[1772712880684,5.01654793,91.75,91.724,10.90227203]
[1772712880876,5.01654793,91.75,91.716,1.39154517]
[1772712881187,5.01654793,91.75,91.717,10.90310411]
[1772712881563,5.01654793,91.75,91.718,1.39154517]
[1772712882772,5.01654793,91.75,91.72,1.39154517]
[1772712882986,10.89904211,91.752,91.72,1.39154517]
[1772712883177,5.01654793,91.75,91.712,1.39154517]
[1772712883403,5.01654793,91.74,91.712,1.39154517]
[1772712884789,10.90048943,91.739,91.713,1.39154517]
[1772712885488,10.90048943,91.739,91.711,61.3]
[1772712885489,5.01654793,91.73,91.711,61.3]
[1772712885792,10.90048943,91.739,91.688,1.39154517]
[1772712885793,5.01654793,91.72,91.688,1.39154517]
[1772712886092,5.01654793,91.71,91.688,1.39154517]
[1772712887292,10.90405521,91.709,91.688,1.39154517]
[1772712887872,5.01654793,91.7,91.68,1.39154517]
[1772712888677,10.90405521,91.709,91.68,1.39154517]
[1772712889083,5.01654793,91.7,91.68,1.39154517]
[1772712889476,5.01654793,91.7,91.68,12.29899338]
[1772712890597,5.01654793,91.71,91.691,1.39154517]
[1772712891782,5.01654793,91.71,91.693,1.39154517]